[Event "45th FIDE Womens Olympiad 2024"]
[Site "Budapest"]
[Date "2024.09.12"]
[Round "2.31"]
[White "Lee, Alice"]
[Black "Fronda, Jan Jodilyn"]
[Result "1-0"]
[ECO "A57"]
[WhiteElo "2384"]
[BlackElo "2165"]
[Annotator "TA"]
[PlyCount "64"]
[EventDate "2024.09.05"]
[EventType "team-tourn"]
[EventCountry "HUN"]
[SourceTitle "playchess.com"]
[Source "ChessBase"]
[SourceQuality "1"]
[WhiteTeam "United States of America"]
[BlackTeam "Philippines"]
[BlackTeamCountry "PHI"]
[TimeControl "40/5400+30:1800+30"]

{[%evp 10,64,50,47,50,50,56,40,45,47,47,42,67,70,89,77,79,58,66,68,70,39,82,86,84,90,109,114,115,102,148,157,194,162,170,131,97,62,411,420,425,439,639,620,1172,1103,1160,1173,1145,1171,2041,2005,1949,1875,29978,11533,29991]} 1. d4 {[%emt 0:00:03]} Nf6 {[%emt 0:00:07]} 2. c4 {[%emt 0:00:11]} c5 {[%emt 0:00:06]} 3. d5 {[%emt 0:00:29]} b5 {[%emt 0:00:05]} 4. Nd2 {[%emt 0:01:10]} Qa5 {[%emt 0:00:21]} 5. Qc2 {[%emt 0:02:58]} bxc4 {[%emt 0:03:27]} 6. e4 {[%emt 0:00:41][%cal Og1e2]} d6 {[%emt 0:00:45]} 7. Bxc4 {[%emt 0:01:27]} (7. Qxc4 g6 $11) 7... g6 {[%emt 0:00:06]} 8. Ne2 {[%emt 0:06:33]} Bg7 {[%emt 0:01:26] White is slightly better.} 9. O-O {[%emt 0:00:32]} O-O {[%emt 0:00:20]} 10. b3 {[%emt 0:02:25]} Qc7 {[%emt 0:13:08][%cal Of6e4]} (10... Nxe4 $2 11. Nxe4 Bxa1 12. Bd2 $18) 11. Bb2 {[%emt 0:01:59]} a5 {[%emt 0:00:08]} 12. h3 {[%emt 0:04:16]} Ba6 {[%emt 0:04:45]} 13. f4 {[%emt 0:12:53]} Qb7 {[%emt 0:06:54]} 14. Rab1 {[%emt 0:06:10]} Nbd7 {[%emt 0:05:28]} 15. Bc3 {[%emt 0:02:12]} Qc7 {[%emt 0:11:19]} 16. Qd3 {[%emt 0:01:16]} Bb7 {[%emt 0:01:24]} 17. a4 {[%emt 0:11:19]} Rfd8 {[%emt 0:08:07]} 18. g4 {[%emt 0:01:25][%cal Bg2g4,Bg4g5,Bg5f6][%mdl 32] White is more active.} Nb6 {[%emt 0:02:42]} 19. Rf2 {[%emt 0:02:18]} Qc8 {[%emt 0:08:36]} (19... e6 $142) 20. Bb5 $16 {[%emt 0:04:01]} e6 {[%emt 0:04:05][%cal Re6d5]} 21. Nc4 {[%emt 0:02:19]} Qc7 {[%emt 0:07:33][%cal Re6d5]} 22. Nxb6 {[%emt 0:08:06]} ({Inferior is} 22. Bxa5 Rxa5 23. Nxa5 exd5 24. Nxb7 dxe4 $11) (22. Nxa5 exd5 23. exd5 (23. Nxb7 dxe4 24. Qg3 Qxb7 $11) 23... Bxd5 $11) 22... Qxb6 {[%emt 0:00:06]} 23. g5 {[%emt 0:00:14]} exd5 $2 {[%emt 0:07:53][%mdl 8192] Loses the game.} ({Black should play} 23... Nh5 $1 $14) 24. gxf6 $18 {[%emt 0:03:06]} ({Weaker is} 24. Bxf6 dxe4 25. Qg3 (25. Bxd8 Rxd8 26. Qg3 Bc8 $16) 25... Bxf6 26. gxf6 Kh8 $16) 24... dxe4 {[%emt 0:00:05]} 25. Qg3 {[%emt 0:00:14][%cal Of4f5]} Bf8 {[%emt 0:01:51]} (25... e3 $142) 26. f5 {[%emt 0:00:19] [#] fxg6 would now be deadly.} d5 {[%emt 0:00:42]} 27. fxg6 {[%emt 0:01:28]} hxg6 {[%emt 0:01:15]} 28. Nf4 {[%emt 0:01:44][%cal Of4g6] White wants to mate with Nxg6!} Qc7 {[%emt 0:07:59]} 29. Qg5 {[%emt 0:02:15][%cal Of4g6] White threatens Nxg6! and mate.} Kh7 {[%emt 0:01:55]} 30. Qh4+ {[%emt 0:01:09]} Bh6 {[%emt 0:01:22] [#]} 31. Ne6 $1 {[%mdl 512]} fxe6 {[%emt 0:01:23]} (31... Rh8 32. Nxc7) 32. Bd2 {[%emt 0:00:40]} Qf7 {[%emt 0:00:00] Weighted Error Value: White=0.09 (flawless) /Black=0.83.  Loses game:     	---       	Black=1      Mistake:       	---       	Black=2      Inaccurate:     	White=2     	Black=2      OK:         	White=11    	Black=5      Best:        	White=2     	---} 1-0

[Event "45th FIDE Womens Olympiad 2024"]
[Site "Budapest"]
[Date "2024.09.12"]
[Round "2.32"]
[White "Canino, Ruelle"]
[Black "Zatonskih, Anna"]
[Result "0-1"]
[ECO "A20"]
[WhiteElo "2004"]
[BlackElo "2320"]
[Annotator "ChessBase"]
[PlyCount "66"]
[EventDate "2024.09.05"]
[EventType "team-tourn"]
[EventCountry "HUN"]
[SourceTitle "playchess.com"]
[Source "ChessBase"]
[SourceQuality "1"]
[WhiteTeam "Philippines"]
[BlackTeam "United States of America"]
[WhiteTeamCountry "PHI"]
[BlackTeamCountry "USA"]
[TimeControl "40/5400+30:1800+30"]

1. c4 {[%emt 0:00:09]} e5 {[%emt 0:00:13]} 2. Nf3 {[%emt 0:00:24]} e4 {[%emt 0:02:21]} 3. Ng1 {[%emt 0:07:49]} Nf6 {[%emt 0:08:27]} 4. Nc3 {[%emt 0:02:58]} Bb4 {[%emt 0:05:06]} 5. Qc2 {[%emt 0:07:47]} Qe7 {[%emt 0:06:53]} 6. Nb5 {[%emt 0:10:04]} d5 {[%emt 0:32:39]} 7. a3 {[%emt 0:08:51]} c6 {[%emt 0:02:35]} 8. cxd5 {[%emt 0:05:49]} O-O {[%emt 0:07:05]} 9. dxc6 {[%emt 0:05:35]} Bc5 {[%emt 0:02:35]} 10. e3 {[%emt 0:06:51]} Nxc6 {[%emt 0:01:56]} 11. d4 {[%emt 0:01:31]} Bb6 {[%emt 0:02:12]} 12. Ne2 {[%emt 0:04:05]} Bd7 {[%emt 0:01:42]} 13. Ng3 {[%emt 0:03:53]} Rac8 {[%emt 0:01:08]} 14. Nc3 {[%emt 0:01:12]} Rfe8 {[%emt 0:00:08]} 15. Be2 {[%emt 0:01:29]} Bc7 {[%emt 0:03:47]} 16. b4 {[%emt 0:06:56]} a5 {[%emt 0:03:46]} 17. b5 {[%emt 0:01:12]} Nb4 {[%emt 0:03:54]} 18. axb4 {[%emt 0:03:57]} axb4 {[%emt 0:00:01]} 19. Na4 {[%emt 0:02:43]} Bxg3 {[%emt 0:00:14]} 20. Qb2 {[%emt 0:00:34]} Bd6 {[%emt 0:01:07]} 21. Nb6 {[%emt 0:01:03]} Rc7 {[%emt 0:00:58]} 22. Bd2 {[%emt 0:01:04]} Be6 {[%emt 0:01:27]} 23. O-O {[%emt 0:04:55]} Nd5 {[%emt 0:04:35]} 24. Nxd5 {[%emt 0:02:58]} Bxd5 {[%emt 0:00:01]} 25. b6 {[%emt 0:06:59]} Rc6 {[%emt 0:02:16]} 26. Bb5 {[%emt 0:00:54]} Bxh2+ {[%emt 0:00:21]} 27. Kxh2 {[%emt 0:01:15]} Qh4+ {[%emt 0:00:03]} 28. Kg1 {[%emt 0:00:06]} Rh6 {[%emt 0:00:02]} 29. f4 {[%emt 0:01:10]} exf3 {[%emt 0:00:01]} 30. Rxf3 {[%emt 0:00:43]} Bxf3 {[%emt 0:00:25]} 31. Bf1 {[%emt 0:00:22]} Qh2+ {[%emt 0:02:07]} 32. Kf2 {[%emt 0:00:03]} Bxg2 {[%emt 0:00:16]} 33. Qxb4 {[%emt 0:01:08]} Bxf1+ {[%emt 0:01:35]} 0-1

[Event "45th FIDE Womens Olympiad 2024"]
[Site "Budapest"]
[Date "2024.09.12"]
[Round "2.33"]
[White "Goossens, Hanne"]
[Black "Paehtz, Elisabeth"]
[Result "0-1"]
[ECO "C56"]
[WhiteElo "2189"]
[BlackElo "2455"]
[Annotator "TA"]
[PlyCount "76"]
[EventDate "2024.09.05"]
[EventType "team-tourn"]
[EventCountry "HUN"]
[SourceTitle "playchess.com"]
[Source "ChessBase"]
[SourceQuality "1"]
[WhiteTeam "Belgium"]
[BlackTeam "Germany"]
[WhiteTeamCountry "BEL"]
[BlackTeamCountry "GER"]
[TimeControl "40/5400+30:1800+30"]

{[%evp 15,76,0,0,0,0,-16,-16,-22,0,0,0,0,1,14,60,43,66,46,63,70,75,48,62,0,39,-25,-20,-43,-39,-82,-33,-54,16,-8,-5,-1,-11,-24,0,-48,-64,-68,-59,-101,-24,-530,-547,-852,-839,-854,-827,-858,-886,-858,-853,-818,-808,-791,-760,-813,-803,-764,-729]} 1. e4 e5 {[%cal Be7e5,Be5d4][%mdl 32]} 2. Nf3 Nc6 3. Bc4 Nf6 4. d4 exd4 5. e5 d5 6. Bb5 Nd7 7. O-O Be7 8. Bxc6 bxc6 9. Nxd4 Nb8 10. Nc3 O-O 11. Qf3 {The position is equal.} (11. Qh5 {seems wilder.} Re8 12. Bf4 Qd7 13. Rfe1) 11... a5 12. Re1 Ra6 13. Nf5 Bxf5 14. Qxf5 Rb6 (14... Qc8 $11 15. Qd3 Rd8) 15. b3 Qd7 16. Qd3 Rd8 17. Na4 Rb5 18. Bb2 Na6 {[%cal Bb8a6,Ba6b4,Bb4d5,Bd5f4,Bf4h3][%mdl 32]} 19. Nc3 (19. a3 $14) 19... Rb6 20. Ne2 (20. Rad1 $14) 20... c5 $11 21. Ng3 Nb4 22. Qd2 Qg4 (22... d4 $17) 23. f4 Rh6 ({Black should try} 23... c4 $15 24. Bd4 c5) 24. Re2 Qh4 25. Nf1 d4 {[%cal Oc5c4] White must now prevent ...c4!} 26. Re4 Nd5 {[%cal Od5e3]} 27. g3 (27. Rae1 $11 {feels stronger.}) 27... Qg4 $15 {[%cal Oa5a4]} 28. Qe2 Qf5 29. Qg2 Rg6 {Black is much more active. The white rooks are passive.} (29... a4 $1 $17 30. Nd2 Ne3 31. Rxe3 dxe3) 30. Ree1 $2 {[%mdl 8192] [#] This costs White the game.} (30. a4 $11 {and White stays safe.}) 30... Nxf4 $19 {Black is clearly winning.} 31. Qf3 Nh3+ 32. Kg2 Qxc2+ 33. Re2 {[#]} Qxe2+ $3 {[%mdl 512]} 34. Qxe2 Nf4+ 35. Kf2 Nxe2 36. Kxe2 Re6 37. Nd2 Rxe5+ 38. Kf2 Rf5+ {Weighted Error Value: White=0.54/Black=0.15 (very precise) .  Loses game:     	White=1     	---        Mistake:       	White=3     	Black=4      Inaccurate:     	White=3     	Black=1      OK:         	White=7     	Black=9      Best:        	White=1     	Black=2} 0-1

[Event "45th FIDE Womens Olympiad 2024"]
[Site "Budapest"]
[Date "2024.09.12"]
[Round "2.34"]
[White "Heinemann, Josefine"]
[Black "Vanduyfhuys, Daria"]
[Result "1/2-1/2"]
[ECO "E95"]
[WhiteElo "2316"]
[BlackElo "2112"]
[Annotator "ChessBase"]
[PlyCount "63"]
[EventDate "2024.09.05"]
[EventType "team-tourn"]
[EventCountry "HUN"]
[SourceTitle "playchess.com"]
[Source "ChessBase"]
[SourceQuality "1"]
[WhiteTeam "Germany"]
[BlackTeam "Belgium"]
[WhiteTeamCountry "GER"]
[BlackTeamCountry "BEL"]
[TimeControl "40/5400+30:1800+30"]

1. c4 Nf6 2. Nf3 g6 3. Nc3 Bg7 4. d4 d6 5. e4 O-O 6. Be2 Nbd7 7. O-O e5 8. Re1 exd4 9. Nxd4 Nc5 10. Bf1 Re8 11. f3 Ne6 12. Nde2 Bd7 13. Be3 a6 14. a4 a5 15. Qc2 Qe7 16. Rad1 Rad8 17. Bf2 Qf8 18. Nb5 Bxb5 19. axb5 Nd7 20. Nc3 Be5 21. g3 Qg7 22. Qd2 Ndc5 23. Bg2 Nb3 24. Qc2 Nbd4 25. Qb1 g5 26. Re3 c6 27. Red3 Nb3 28. Na4 Nbd4 29. Nc3 Nb3 30. Na4 Nbd4 31. Nc3 Nb3 32. Na4 1/2-1/2

[Event "45th FIDE Womens Olympiad 2024"]
[Site "Budapest"]
[Date "2024.09.12"]
[Round "2.35"]
[White "De Rycke, Tyani"]
[Black "Klek, Hanna Marie"]
[Result "1/2-1/2"]
[ECO "B26"]
[WhiteElo "2110"]
[BlackElo "2296"]
[Annotator "ChessBase"]
[PlyCount "83"]
[EventDate "2024.09.05"]
[EventType "team-tourn"]
[EventCountry "HUN"]
[SourceTitle "playchess.com"]
[Source "ChessBase"]
[SourceQuality "1"]
[WhiteTeam "Belgium"]
[BlackTeam "Germany"]
[WhiteTeamCountry "BEL"]
[BlackTeamCountry "GER"]
[TimeControl "40/5400+30:1800+30"]

1. e4 c5 2. Nc3 Nc6 3. g3 g6 4. Bg2 Bg7 5. d3 d6 6. Be3 e5 7. Qd2 Nge7 8. Nge2 Nd4 9. O-O O-O 10. f4 Be6 11. Nd1 b6 12. c3 Nxe2+ 13. Qxe2 exf4 14. gxf4 d5 15. Nf2 Qd7 16. Rad1 d4 17. Bd2 Bxa2 18. c4 Bb3 19. Ra1 a5 20. f5 gxf5 21. exf5 Rae8 22. Ne4 f6 23. Qh5 Nc8 24. Rf3 Re5 25. Raf1 Qe8 26. Qh4 Rxe4 27. dxe4 Bxc4 28. Rh3 h5 29. Rff3 Be2 30. Rf2 Bd1 31. Rg3 Rf7 32. Rf1 Be2 33. Re1 d3 34. Bf1 Bxf1 35. Rxf1 c4 36. Bh6 Qe5 37. Qxh5 Nd6 38. Qg4 Qxe4 39. Rf4 Qe1+ 40. Rf1 Qe4 41. Rf4 Qe1+ 42. Rf1 1/2-1/2

[Event "45th FIDE Womens Olympiad 2024"]
[Site "Budapest"]
[Date "2024.09.12"]
[Round "2.36"]
[White "Schulze, Lara"]
[Black "Dierckens, Sarah"]
[Result "1-0"]
[ECO "B75"]
[WhiteElo "2283"]
[BlackElo "1943"]
[Annotator "ChessBase"]
[PlyCount "61"]
[EventDate "2024.09.05"]
[EventType "team-tourn"]
[EventCountry "HUN"]
[SourceTitle "playchess.com"]
[Source "ChessBase"]
[SourceQuality "1"]
[WhiteTeam "Germany"]
[BlackTeam "Belgium"]
[WhiteTeamCountry "GER"]
[BlackTeamCountry "BEL"]
[TimeControl "40/5400+30:1800+30"]

1. e4 c5 2. Nf3 d6 3. d4 cxd4 4. Nxd4 Nf6 5. Nc3 g6 6. Be3 Bg7 7. f3 a6 8. Qd2 Nbd7 9. Be2 b5 10. a4 bxa4 11. Rxa4 Bb7 12. Nb3 O-O 13. Na5 Qc7 14. O-O Nc5 15. Ra3 Rfd8 16. b4 Ne6 17. Na4 Nd7 18. c4 Bc6 19. Nc3 Nb6 20. Nd5 Bxd5 21. cxd5 Nf8 22. Rc1 Qb8 23. Nc6 Qb7 24. Nxd8 Rxd8 25. Rxa6 Nfd7 26. Ra5 Rc8 27. Ba6 Rxc1+ 28. Qxc1 Qb8 29. Qc6 Nxd5 30. Qxd5 Qxb4 31. Bf1 1-0

[Event "45th FIDE Womens Olympiad 2024"]
[Site "Budapest"]
[Date "2024.09.12"]
[Round "2.37"]
[White "Garcia Martin, Marta"]
[Black "Sulyok, Eszter"]
[Result "1-0"]
[ECO "C54"]
[WhiteElo "2318"]
[BlackElo "2080"]
[Annotator "ChessBase"]
[PlyCount "55"]
[EventDate "2024.09.05"]
[EventType "team-tourn"]
[EventCountry "HUN"]
[SourceTitle "playchess.com"]
[Source "ChessBase"]
[SourceQuality "1"]
[WhiteTeam "Spain"]
[BlackTeam "Hungary C"]
[WhiteTeamCountry "ESP"]
[BlackTeamCountry "HUN"]
[TimeControl "40/5400+30:1800+30"]

1. e4 e5 2. Nf3 Nc6 3. Bc4 Bc5 4. d3 Nf6 5. O-O O-O 6. c3 d6 7. Nbd2 a5 8. Re1 Be6 9. h3 h6 10. Bb5 Ne7 11. d4 exd4 12. cxd4 Ba7 13. Bd3 d5 14. e5 Nd7 15. Nf1 c5 16. Ng3 cxd4 17. Bxh6 Ng6 18. Qd2 Re8 19. Nh5 Bxh3 20. Bxg7 Bg4 21. Qh6 Bxh5 22. Ng5 Qxg5 23. Qxg5 Kxg7 24. f4 Nc5 25. f5 Rh8 26. Qf6+ Kh6 27. fxg6 Nxd3 28. g7+ 1-0

[Event "45th FIDE Womens Olympiad 2024"]
[Site "Budapest"]
[Date "2024.09.12"]
[Round "2.38"]
[White "Gombocz, Zsofia"]
[Black "Vega Gutierrez, Sabrina"]
[Result "0-1"]
[ECO "B40"]
[WhiteElo "2061"]
[BlackElo "2374"]
[Annotator "TA"]
[PlyCount "52"]
[EventDate "2024.09.05"]
[EventType "team-tourn"]
[EventCountry "HUN"]
[SourceTitle "playchess.com"]
[Source "ChessBase"]
[SourceQuality "1"]
[WhiteTeam "Hungary C"]
[BlackTeam "Spain"]
[BlackTeamCountry "ESP"]
[TimeControl "40/5400+30:1800+30"]

{[%evp 9,52,-4,0,-14,-14,-14,64,-88,-77,-68,-69,-69,-56,-56,-18,-135,-142,-132,-85,-82,-86,-119,-112,-169,-135,-264,-245,-481,-471,-487,-484,-587,-566,-570,-535,-942,-940,-935,-921,-689,-683,-5744,-11247,-29977,-29978]} 1. e4 c5 2. Nf3 e6 3. c4 Nc6 4. Nc3 Nd4 5. Nxd4 cxd4 6. Ne2 e5 7. Ng3 {[#]} h5 8. h4 $2 (8. Nxh5 $14 {was the only good move.} g6 9. Ng3) 8... g6 $17 9. Ne2 Qa5 10. g3 Nf6 11. Bg2 b5 12. cxb5 (12. Nxd4 $1 $11 {remains equal.} bxc4 (12... exd4 13. e5 $11) 13. Nc2) 12... Qxb5 13. Qb3 Ba6 ({Black should play} 13... Qxb3 14. axb3 Rb8) 14. Qxb5 Bxb5 15. f4 Ng4 {Black has more active pieces.} 16. Bf3 (16. fxe5 $17 Nxe5 17. Nf4 (17. Nxd4 Nd3+ 18. Kd1 Ba6 $17)) 16... Bd6 17. Bxg4 (17. b3 $17) 17... hxg4 $19 18. f5 $2 (18. fxe5 Bxe5 19. Kf2) 18... Bd3 {[%csl LRe4,LRf5]} ({Don't take} 18... gxf5 19. exf5 f6 20. b3) 19. fxg6 fxg6 20. Rf1 Ke7 21. b3 Raf8 22. Bb2 {White is weak on the light squares} Rxf1+ 23. Kxf1 Rf8+ 24. Ke1 Bxe4 {[#] ...d3 is the strong threat.} 25. d3 Bb4+ 26. Kd1 Bxd3 {Weighted Error Value: White=1.30/Black=0.15 (very precise) .  Mistake:       	White=5     	Black=2      Inaccurate:     	White=2     	Black=1      OK:         	White=5     	Black=3      Best:        	---       	Black=2} 0-1

[Event "45th FIDE Womens Olympiad 2024"]
[Site "Budapest"]
[Date "2024.09.12"]
[Round "2.39"]
[White "Matnadze Bujiashvili, Ann"]
[Black "Nandin-Erdene, Davaademberel"]
[Result "1-0"]
[ECO "D02"]
[WhiteElo "2338"]
[BlackElo "2039"]
[Annotator "TA"]
[PlyCount "224"]
[EventDate "2024.09.05"]
[EventType "team-tourn"]
[EventCountry "HUN"]
[SourceTitle "playchess.com"]
[Source "ChessBase"]
[SourceQuality "1"]
[WhiteTeam "Spain"]
[BlackTeam "Hungary C"]
[WhiteTeamCountry "ESP"]
[BlackTeamCountry "HUN"]
[TimeControl "40/5400+30:1800+30"]

{[%evp 15,224,53,48,27,46,49,55,55,55,37,34,35,50,35,34,31,29,35,34,11,12,0,62,55,95,85,114,122,116,111,111,113,114,123,146,138,176,162,157,156,195,195,220,220,281,278,278,252,260,204,280,204,284,190,257,229,229,221,221,169,156,145,161,0,175,170,162,98,98,79,79,79,79,69,69,69,69,69,69,69,69,69,69,69,69,69,69,69,69,69,69,69,69,0,69,0,69,0,69,69,69,69,69,69,69,69,69,69,69,69,69,69,69,69,69,69,69,49,49,49,49,49,49,49,49,49,49,49,49,49,49,49,49,49,49,49,49,49,49,49,49,49,49,0,8,8,49,0,25,25,49,49,49,49,49,49,49,49,49,49,49,49,49,49,49,49,49,49,49,49,49,0,49,49,49,49,49,49,49,49,49,8,33,33,33,33,33,33,33,33,33,33,33,8,33,33,33,33,33,8,29974,29972,29974,29965,29960,29958,29972,29973,29973,6467,29990]} 1. Nf3 d5 2. g3 Nf6 3. Bg2 c5 4. O-O Nc6 5. d4 cxd4 6. Nxd4 e5 7. Nxc6 bxc6 8. c4 Be6 9. Qa4 {[#] Black must now prevent cxd5.} Qd7 10. Nc3 Rc8 11. cxd5 {White is slightly better.} cxd5 12. Qxd7+ Kxd7 13. Rd1 {[%cal Oc1g5]} Bc5 14. Nxd5 (14. Bxd5 Nxd5 15. e4 (15. Nxd5 Bxd5 16. Rxd5+ Ke6 $14) 15... Bd4 16. exd5 Bg4 $11) 14... Nxd5 15. Bxd5 Bxd5 16. Rxd5+ Ke6 17. Rd1 Rhd8 18. Bd2 Bb6 ({Better is} 18... Bd4 $1 $11) 19. Bc3 $14 Bd4 20. Rac1 Bxc3 21. Rxd8 Rxd8 22. Rxc3 $16 {[%mdl 4096] Endgame. KR-KR} ({Much worse is} 22. bxc3 $6 Rd2 $11) 22... Rd2 {[%csl LRb2,LRe2]} 23. Rc6+ Kf5 {[%cal Oa7a5]} 24. Rc7 {[%csl LRa7,LRf7]} Kg6 25. Rxa7 Rxb2 26. Kf1 Rb1+ 27. Kg2 e4 28. g4 Rb2 29. e3 f6 30. Ra5 Rc2 31. h3 Rb2 32. Kg3 Re2 33. h4 Kh6 34. Ra6 Kg6 (34... Re1 {was called for.} 35. Rd6 Kg6) 35. h5+ Kg5 36. Ra7 Kh6 37. a3 Ra2 38. Ra6 {And now Kh4 would win.} Kg5 39. Ra7 Kh6 40. Ra4 g6 41. hxg6 ({White should play} 41. Rxe4 $18 {Re6 is the strong threat.} gxh5 42. gxh5) 41... hxg6 42. Rxe4 Rxa3 43. Re6 Kg7 44. Re7+ Kf8 45. Rb7 g5 46. Kf3 Ra2 47. Rc7 Rb2 48. Kg3 Rb3 49. Kg2 Ra3 50. Rd7 Ke8 51. Rh7 Ra2 52. Kg3 Ra3 53. Kf3 Ra2 54. Rb7 Kf8 55. Kg3 Ra3 $1 56. Kf3 Ra2 57. Rb3 Kf7 58. Kg3 Ra4 59. Rd3 Ra1 60. Kg2 Ra2 61. Kf3 Ke6 62. Kg3 Ra1 63. Rb3 Rg1+ 64. Kf3 Re1 65. Ke4 {Rb6+ would now be deadly.} Re2 66. f3 Ra2 67. Rb6+ Kf7 68. Rc6 Ra4+ 69. Kd5 Ra3 70. Rc7+ Kg6 71. Kd4 Ra4+ 72. Rc4 Ra3 73. Ke4 Ra1 74. Rd4 Ra3 75. Rb4 Rc3 76. Rb7 Rc4+ 77. Kd5 Ra4 78. Re7 Ra5+ 79. Kd6 (79. Ke4 $14) 79... Ra6+ 80. Kc5 Ra3 81. Re4 (81. Kc4 $14) 81... Ra5+ 82. Kd4 Ra3 83. Re6 Ra4+ 84. Kd3 Ra3+ 85. Ke2 Ra2+ 86. Ke1 Rb2 87. Rd6 Rh2 88. Rd7 Ra2 89. Rd2 Ra3 90. Kf2 Rb3 91. Rd7 Rb2+ 92. Kg3 Rb3 93. Kf2 Rb2+ 94. Kf1 Ra2 95. Rd3 Ra4 96. Kf2 Ra2+ 97. Kg3 Ra1 98. f4 gxf4+ 99. exf4 Rg1+ 100. Kh3 Rf1 101. Rd4 Rh1+ 102. Kg2 Ra1 103. Rd7 Ra3 104. Re7 Rb3 105. Kf2 Ra3 106. Re6 {Intending g5 and mate.} Rb3 107. g5 Kf5 $2 {[%mdl 8192] [#] Loses the game.} ({Not} 107... Rb2+ $2 108. Kf3 $18) (107... Kh5 $11) 108. Rxf6+ Kg4 109. Rf7 Rb6 110. Ke3 Re6+ 111. Kd4 Rg6 112. Ke5 (112. Rf6 $142 Rg8 113. g6 Rg7 114. f5 Rg8 115. g7 Kg5 116. Rf7 Kg4 117. f6 Rd8+ 118. Kc5) 112... Kh5 {Weighted Error Value: White=0.18 (very precise) /Black=0.12 (very precise) .  Loses game:     	---       	Black=1      Mistake:       	White=3     	Black=2      Inaccurate:     	White=2     	Black=5      OK:         	White=29    	Black=39     Best:        	White=2     	Black=7      Strong:       	---       	Black=1} 1-0

[Event "45th FIDE Womens Olympiad 2024"]
[Site "Budapest"]
[Date "2024.09.12"]
[Round "2.40"]
[White "Sipos, Stefania"]
[Black "Calzetta Ruiz, Monica"]
[Result "0-1"]
[ECO "B22"]
[WhiteElo "1993"]
[BlackElo "2199"]
[Annotator "ChessBase"]
[PlyCount "68"]
[EventDate "2024.09.05"]
[EventType "team-tourn"]
[EventCountry "HUN"]
[SourceTitle "playchess.com"]
[Source "ChessBase"]
[SourceQuality "1"]
[WhiteTeam "Hungary C"]
[BlackTeam "Spain"]
[WhiteTeamCountry "HUN"]
[BlackTeamCountry "ESP"]
[TimeControl "40/5400+30:1800+30"]

1. e4 c5 2. Nf3 Nc6 3. c3 d5 4. exd5 Qxd5 5. d4 Nf6 6. Be3 cxd4 7. cxd4 e6 8. Nc3 Qd8 9. Bd3 Be7 10. O-O O-O 11. Qe2 Nb4 12. Bb1 b6 13. Re1 Ba6 14. Qd2 Rc8 15. a3 Nbd5 16. Nxd5 Qxd5 17. Ba2 Qa8 18. Bg5 Bb7 19. Re3 Ne4 20. Rxe4 Bxg5 21. Nxg5 Bxe4 22. Re1 Bf5 23. Bb3 h6 24. Nf3 Qc6 25. Ne5 Qb5 26. Qe3 Bc2 27. Bxc2 Rxc2 28. b3 Qd5 29. Nc4 Rd8 30. Qd3 Qf5 31. Qg3 Qg5 32. Qd3 Rc1 33. Rd1 Rxd1+ 34. Qxd1 Qf4 0-1